fUST/lending_fUST_20250309
["ID","MTS","AMOUNT","RATE_DAILY","PERIOD"]
[355743761,1741525761121,-444.08433134,0.00027733,5]
[355743762,1741525761142,-217.42,0.00027808,2]
[355743763,1741525761163,-217.42,0.00027809,2]
[355743764,1741525761259,-217.42,0.00027809,2]
[355743765,1741525761284,-217.42,0.0002781,2]
[355743766,1741525761305,-217.42,0.0002781,2]
[355743767,1741525761326,-3635.44609816,0.0002782,2]
[355743768,1741525761348,-28995.1569583,0.0002789,2]
[355743769,1741525761369,-425.58307928,0.0002789,2]
[355743770,1741525761390,-600.0,0.00027891,2]
[355743771,1741525761411,-217.42,0.00027898,2]
[355743772,1741525761433,-217.42,0.00027898,2]
[355743773,1741525761454,-217.42,0.00027898,2]
[355743774,1741525761475,-217.42,0.00027898,2]
[355743775,1741525761495,-217.42,0.00027898,2]
[355743776,1741525761516,-217.42,0.00027898,2]
[355743777,1741525761537,-217.42,0.00027898,2]
[355743778,1741525761558,-217.42,0.00027898,2]
[355743779,1741525761580,-217.42,0.00027898,2]
[355743780,1741525761601,-217.42,0.00027898,2]
[355743781,1741525761623,-217.42,0.00027898,2]
[355743782,1741525761646,-217.42,0.00027898,2]
[355743783,1741525761668,-217.42,0.00027898,2]
[355743784,1741525761691,-217.42,0.00027898,2]
[355743785,1741525761713,-3579.69073746,0.000279,2]
[355743786,1741525761734,-8085.88649495,0.0002792,2]
[355743787,1741525761756,-622.2,0.00027946,2]
[355743788,1741525761777,-1000.0,0.00028,4]
[355743789,1741525761799,-645.2214,0.00028001,2]
[355743790,1741525761821,-500.0,0.0002802,2]
[355743791,1741525761846,-500.0,0.0002802,2]
[355743792,1741525761885,-804.57166356,0.0002802,2]
[355743793,1741525761923,-790.27317132,0.0002802,2]
[355743794,1741525761965,-500.0,0.0002802,2]
[355743795,1741525761999,-500.0,0.0002802,2]
[355743796,1741525762033,-533.38703458,0.0002802,2]
[355743797,1741525762067,-500.0,0.0002802,2]
[355743798,1741525762105,-500.0,0.0002802,2]
[355743799,1741525762138,-500.0,0.0002802,2]
[355743800,1741525762175,-500.0,0.0002802,2]
[355743801,1741525762213,-500.0,0.0002802,2]
[355743802,1741525762243,-500.0,0.0002802,2]
[355743803,1741525762273,-500.0,0.0002802,2]
[355743804,1741525762306,-500.0,0.0002802,2]
[355743805,1741525762339,-500.0,0.0002802,2]
[355743806,1741525762371,-500.0,0.0002802,2]
[355743807,1741525762402,-987.46037082,0.0002802,2]
[355743808,1741525762434,-500.0,0.0002802,2]
[355743809,1741525762465,-500.0,0.0002802,2]
[355743810,1741525762496,-500.0,0.0002802,2]
[355743811,1741525762527,-863.69479046,0.0002802,2]
[355743812,1741525762558,-916.07596613,0.0002802,2]
[355743813,1741525762589,-500.0,0.0002802,2]
[355743814,1741525762619,-818.23940897,0.0002802,2]
[355743815,1741525762649,-669.0945918,0.00028056,2]
[355743816,1741525762679,-693.8510917,0.00028111,2]
[355743817,1741525762704,-719.52358209,0.00028166,2]
[355743818,1741525762867,-1286.60159374,0.00028221,2]
[355743819,1741525762896,-420.0,0.00028276,2]
[355743820,1741525762916,-10000.0,0.00028382,2]
[355743821,1741525762939,-28995.1569583,0.00029608,2]
[355743822,1741525762960,-425.58307928,0.00029608,2]
[355743823,1741525762981,-3013.25400963,0.00029618,2]
[355743824,1741525763002,-246.73114356,0.0002988,2]
[355743825,1741525763023,-587.0,0.00030597,2]
[355743826,1741525763043,-500.0,0.00031,10]
[355743827,1741525763064,-500.0,0.00031,10]
[355743828,1741525763085,-189.80218463,0.00031,10]
[355743829,1741525763108,-500.0,0.00031,10]
[355743830,1741525763129,-500.0,0.00031,10]
[355743831,1741525763150,-500.0,0.00031,10]
[355743832,1741525763171,-500.0,0.00031,10]
[355743833,1741525763196,-500.0,0.00031,10]
[355743834,1741525763219,-500.0,0.00031,10]
[355743835,1741525763242,-500.0,0.00031,10]
[355743836,1741525763264,-164.3254962,0.00031,10]
[355743837,1741525763286,-500.0,0.00031,10]
[355743838,1741525763308,-500.0,0.00031,10]
[355743839,1741525763329,-500.0,0.00031,10]
[355743840,1741525763352,-500.0,0.00031,10]
[355743841,1741525763375,-500.0,0.00031,10]
[355743842,1741525763396,-500.0,0.00031,10]
[355743843,1741525763418,-500.0,0.00031,10]
[355743844,1741525763442,-500.0,0.00031,10]
[355743845,1741525763464,-500.0,0.00031,10]
[355743846,1741525763485,-500.0,0.00031,10]
[355743847,1741525763507,-500.0,0.00031,10]
[355743848,1741525763529,-500.0,0.00031,10]
[355743849,1741525763551,-500.0,0.00031,10]
[355743850,1741525763572,-500.0,0.00031,10]
[355743851,1741525763594,-500.0,0.00031,10]
[355743852,1741525763616,-500.0,0.00031,10]
[355743853,1741525763637,-500.0,0.00031,10]
[355743854,1741525763667,-500.0,0.00031,10]
[355743855,1741525763691,-500.0,0.00031,10]
[355743856,1741525763712,-505.65970739,0.00031,10]
[355743857,1741525763735,-500.0,0.00031,10]
[355743858,1741525763757,-500.0,0.00031,10]
[355743859,1741525763779,-500.0,0.00031,10]
[355743860,1741525763801,-500.0,0.00031,10]
[355743861,1741525763822,-416.66666667,0.00031,10]
[355743862,1741525763844,-486.86646456,0.00031091,2]
[355743863,1741525763866,-200.33276565,0.00031215,2]
[355743864,1741525763888,-2424.0,0.00031391,7]
[355743865,1741525763909,-3744.0,0.00031391,7]
[355743866,1741525763931,-1531.0,0.00031391,7]
[355743867,1741525763952,-2359.0,0.00031391,7]
[355743868,1741525763974,-606.0,0.00031391,7]
[355743869,1741525763996,-1212.0,0.00031391,7]
[355743870,1741525764018,-151.0,0.00031391,7]
[355743871,1741525764040,-303.0,0.00031391,7]
[355743872,1741525764062,-150.0,0.00031391,7]
[355743873,1741525764084,-150.0,0.00031391,7]
[355743874,1741525764105,-192.0,0.00031391,7]
[355743875,1741525764128,-150.0,0.00031391,7]
[355743876,1741525764151,-416.66666667,0.00031391,7]
[355743877,1741525764173,-3579.69073746,0.000329,2]
[355743878,1741525764201,-505.90606582,0.00032924,5]
[355743879,1741525764223,-246.71,0.00032958,2]
[355743880,1741525764246,-910.6,0.00033,30]
[355743881,1741525764269,-1000.0,0.00033004,2]
[355743882,1741525764292,-277.04331406,0.00033004,2]
[355743883,1741525764314,-1000.0,0.00033004,5]
[355743884,1741525764337,-1000.0,0.00033004,2]
[355743885,1741525764361,-1000.0,0.00033004,5]
[355743886,1741525764384,-28995.1569583,0.00033094,2]
[355743887,1741525764408,-425.58307928,0.00033094,2]
[355743888,1741525764431,-3013.25400963,0.00033104,2]
[355743889,1741525764454,-823.0,0.00033108,2]
[355743890,1741525764477,-2143.0,0.000333,30]
[355743891,1741525764500,-158.467092,0.00033532,14]
[355743892,1741525764522,-151.0,0.00033532,14]
[355743893,1741525764544,-151.0,0.00033532,14]
[355743894,1741525764566,-548.941183,0.00033532,14]
[355743895,1741525764587,-548.941183,0.00033532,14]
[355743896,1741525764608,-243.839853,0.00033532,14]
[355743897,1741525764630,-151.0,0.00033532,14]
[355743898,1741525764652,-243.839853,0.00033532,14]
[355743899,1741525764674,-1000.0,0.00033552,5]
[355743900,1741525764696,-300.0,0.00033687,2]
[355743901,1741525764817,-246.71,0.00034328,2]
[355743902,1741525764840,-236.46,0.00035,5]
[355743903,1741525764862,-246.71,0.00035698,2]
[355743904,1741525764884,-1152.0,0.00035825,2]
[355743905,1741525764907,-304.823498,0.0003589,2]
[355743906,1741525764931,-440.74007074,0.000362,98]
[355743907,1741525764954,-440.74007073,0.000362,98]
[355743908,1741525764976,-200.33276565,0.00036297,2]
[355743909,1741525764998,-3013.25400963,0.0003659,2]
[355743910,1741525765021,-246.71,0.00037068,2]
[355743911,1741525765043,-151.0,0.00037136,14]
[355743912,1741525765066,-440.74007073,0.00037407,105]
[355743913,1741525765088,-910.6,0.00038,30]
[355743914,1741525765110,-160.0,0.00038063,2]
[355743915,1741525765132,-246.71,0.00038438,2]
[355743916,1741525765154,-1613.0,0.00038766,5]
[355743917,1741525765177,-246.71,0.00039807,2]
[355743918,1741525765204,-1503.87337736,0.00040075,28]
[355743919,1741525765477,-1509.38063227,0.00040075,28]
[355743920,1741525765497,-160.0,0.00041,14]
[355743921,1741525765518,-161.74199836,0.00041096,2]
[355743922,1741525765539,-246.71,0.00041177,30]
[355743923,1741525765560,-304.823498,0.00041211,2]
[355743924,1741525765581,-200.33276565,0.0004138,2]
[355743925,1741525765828,151.0,0.00033532,14]
[355743926,1741525766465,508.80275139,0.00026221,2]
[355743927,1741525766523,508.80275139,0.00026221,2]
[355743928,1741525766574,508.80275139,0.00026221,2]
[355743929,1741525769478,162.69435949,0.0002712,2]
[355743930,1741525784488,11391.2944105,0.0004168,2]
[355743931,1741525799741,1033.0,0.00041,30]
[355743932,1741525800121,151.0,0.00033532,14]
[355743933,1741525801211,508.80275138,0.00026221,2]
[355743934,1741525808962,466.67566952,0.00029099,2]
[355743935,1741525809048,600.0,0.00026217,2]
[355743936,1741525809643,622.2,0.00026272,2]
[355743937,1741525810297,897.69930958,0.00026327,2]
[355743938,1741525816277,151.0,0.00033094,14]
[355743939,1741525818523,256.66666667,0.00031391,7]
[355743940,1741525819777,199.73,0.00027918,2]
[355743941,1741525819888,199.73,0.00029288,2]
[355743942,1741525820125,199.73,0.00030658,2]
[355743943,1741525820374,199.73,0.00032028,2]
[355743944,1741525820646,199.73,0.00033398,2]
[355743945,1741525820901,199.73,0.00034767,2]
[355743946,1741525821150,199.73,0.00036137,2]
[355743947,1741525821328,224.673376,0.00033532,14]
[355743948,1741525821748,199.73,0.00037507,2]
[355743949,1741525821999,199.73,0.00038877,2]
[355743950,1741525822249,199.73,0.00040247,2]
[355743951,1741525822499,199.73,0.00041617,30]
[355743952,1741525829726,224.673376,0.00033532,14]
[355743968,1741525836302,-166.0,0.00041713,120]
[355743969,1741525836313,-236.46,0.00041811,14]
[355743970,1741525836397,-1272.70076019,0.000419,9]
[355743971,1741525836426,-550.0,0.00042799,5]
[355743972,1741525836436,-3000.0,0.000428,90]
[355743973,1741525836445,-199.73,0.00042987,30]
[355743974,1741525836455,-1500.0,0.00043023,10]
[355743975,1741525836465,-179.40795375,0.00043518,29]
[355743976,1741525836474,-3013.25400963,0.00043561,28]
[355743977,1741525836484,-237.8005388,0.00043571,10]
[355743978,1741525836494,-409.53049324,0.00043834,31]
[355743979,1741525836503,-220.44756865,0.00043834,31]
[355743980,1741525836512,-309.1768322,0.00043834,2]
[355743981,1741525836523,-500.0,0.00043834,2]
[355743982,1741525836532,-332.90234154,0.00043834,31]
[355743983,1741525836542,-500.0,0.00043834,2]
[355743984,1741525836551,-500.0,0.00043834,2]
[355743985,1741525836560,-500.0,0.00043834,2]
[355743986,1741525836570,-231.78690628,0.00043834,2]
[355743987,1741525836713,-268.21309372,0.00043834,2]
[355743988,1741525836723,-500.0,0.00043834,2]
[355743989,1741525836733,-500.0,0.00043834,2]
[355743990,1741525836743,-500.0,0.00043834,2]
[355743991,1741525836753,-500.0,0.00043834,2]
[355743992,1741525836762,-500.0,0.00043834,2]
[355743993,1741525836772,-500.0,0.00043834,2]
[355743994,1741525836781,-500.0,0.00043834,2]
[355743995,1741525836790,-500.0,0.00043834,2]
[355743996,1741525836800,-500.0,0.00043834,2]
[355743997,1741525836809,-500.0,0.00043834,2]
[355743998,1741525836818,-500.0,0.00043834,2]
[355743999,1741525836828,-500.0,0.00043834,2]
[355744000,1741525836837,-500.0,0.00043834,2]
[355744001,1741525836847,-500.0,0.00043834,2]
[355744002,1741525836856,-500.0,0.00043834,2]
[355744003,1741525836866,-500.0,0.00043834,2]
[355744004,1741525836876,-500.0,0.00043834,2]
[355744005,1741525836885,-500.0,0.00043834,2]
[355744006,1741525836894,-500.0,0.00043834,2]
[355744007,1741525836904,-300.97130265,0.00043834,2]
[355744008,1741525836913,-500.0,0.00043834,2]
[355744009,1741525836922,-500.0,0.00043834,2]
[355744010,1741525836931,-500.0,0.00043834,2]
[355744011,1741525836941,-500.0,0.00043834,2]
[355744012,1741525836950,-500.0,0.00043835,120]
[355744013,1741525836960,-200.0,0.00044,2]
[355744014,1741525836970,-199.73,0.00044356,30]
[355744015,1741525836979,-500.0,0.00044383,120]
[355744016,1741525836988,-500.0,0.00044931,120]
[355744017,1741525836998,-276.73,0.00045,120]
[355744018,1741525837007,-500.0,0.00045479,120]
[355744019,1741525837017,-770.0,0.00045519,5]
[355744020,1741525837026,-2503.6939764,0.00045545,4]
[355744021,1741525837036,-156.913141,0.00045668,90]
[355744022,1741525837045,-199.73,0.00045726,30]
[355744023,1741525837055,-5570.41815403,0.00046,19]
[355744024,1741525837064,-500.0,0.00046027,120]
[355744025,1741525837074,-500.0,0.00046334,31]
[355744026,1741525837084,-437.62084368,0.00046334,120]
[355744027,1741525837093,-500.0,0.00046334,31]
[355744028,1741525837103,-500.0,0.00046334,31]
[355744029,1741525837112,-500.0,0.00046334,31]
[355744030,1741525837122,-379.22504378,0.00046334,31]
[355744031,1741525837131,-306.49091,0.00046334,14]
[355744032,1741525837140,-28995.1569583,0.00046335,4]
[355744033,1741525837150,-425.58307928,0.00046335,4]
[355744034,1741525837159,-3605.23,0.000464,120]
[355744035,1741525837169,-200.33276565,0.00046462,2]
[355744036,1741525837179,-599.0,0.00046465,120]
[355744037,1741525837188,-599.0,0.00046465,120]
[355744038,1741525837200,-599.0,0.00046465,120]
[355744039,1741525837216,-459.38039701,0.00046465,120]
[355744040,1741525837226,-3000.0,0.00046475,2]
[355744041,1741525837236,-304.823498,0.00046532,2]
[355744042,1741525837247,-151.0,0.00046553,120]
[355744043,1741525837256,-516.444178,0.00046553,30]
[355744044,1741525837266,-151.435401,0.00046553,120]
[355744045,1741525837276,-548.941183,0.00046553,120]
[355744046,1741525837285,-548.941183,0.00046553,120]
[355744047,1741525837294,-243.839853,0.00046553,120]
[355744048,1741525837304,-151.0,0.00046553,120]
[355744049,1741525837314,-243.839853,0.00046553,120]
[355744050,1741525837323,-151.0,0.00046553,120]
[355744051,1741525837333,-151.0,0.00046553,120]
[355744052,1741525837343,-224.673376,0.00046553,120]
[355744053,1741525837353,-224.673376,0.00046553,120]
[355744054,1741525837363,-151.0,0.00046555,120]
[355744055,1741525837372,-212.844612,0.00046562,120]
[355744056,1741525837382,-28995.1569583,0.00046563,4]
[355744057,1741525837392,-425.58307928,0.00046563,4]
[355744058,1741525837402,-151.0,0.00046565,120]
[355744059,1741525837411,-151.0,0.00046565,120]
[355744060,1741525837420,-162.390994,0.00046565,120]
[355744061,1741525837431,-151.0,0.00046565,120]
[355744062,1741525837440,-151.0,0.00046565,120]
[355744063,1741525837450,-151.0,0.00046565,120]
[355744064,1741525837459,-411.740416,0.00046565,120]
[355744065,1741525837468,-411.740416,0.00046565,120]
[355744066,1741525837478,-151.0,0.00046565,120]
[355744067,1741525837487,-151.0,0.00046565,120]
[355744068,1741525837497,-151.0,0.00046565,120]
[355744069,1741525837588,-291.148032,0.00046565,120]
[355744070,1741525837598,-151.0,0.00046565,120]
[355744071,1741525837608,-151.0,0.00046565,90]
[355744072,1741525837617,-286.135169,0.00046565,120]
[355744073,1741525837627,-249.609834,0.00046565,120]
[355744074,1741525837636,-286.135169,0.00046565,120]
[355744075,1741525837646,-249.609834,0.00046565,120]
[355744076,1741525837656,-28995.1569583,0.00046565,4]
[355744077,1741525837665,-2127.9153964,0.00046565,4]
[355744078,1741525837675,-305.41246649,0.00046573,2]
[355744079,1741525837684,-277.2507577,0.00046573,3]
[355744080,1741525837694,-500.0,0.00046573,10]
[355744081,1741525837704,-503.17899922,0.00046573,10]
[355744082,1741525837713,-500.0,0.00046573,10]
[355744083,1741525837722,-321.27878152,0.00046573,10]
[355744084,1741525837761,-130.60739173,0.00046573,10]
[355744094,1741525838690,-272.8,0.00046555,10]
[355744095,1741525838699,-48.11382675,0.00046573,10]
[355744096,1741525838709,-500.0,0.00046573,10]
[355744097,1741525838718,-500.0,0.00046573,10]
[355744098,1741525838728,-152.32538602,0.00046573,10]
[355744099,1741525838738,-607.92363618,0.00046573,10]
[355744100,1741525838747,-117.28616402,0.00046573,10]
[355744101,1741525838915,-59.25487759,0.00046573,10]
[355744102,1741525838931,-323.45895839,0.00046573,10]
[355744103,1741525838941,-500.0,0.00046573,10]
[355744104,1741525838952,-500.0,0.00046573,10]
[355744105,1741525838961,-525.3087635,0.00046573,2]
[355744106,1741525838972,-500.0,0.00046573,10]
[355744107,1741525838982,-151.0,0.00046575,120]
[355744108,1741525838992,-528.69865855,0.00046575,120]
[355744109,1741525839001,-500.0,0.00046575,120]
[355744110,1741525839010,-405.66588,0.00046575,120]
[355744111,1741525839020,-151.0,0.00046575,120]
[355744112,1741525839030,-151.0,0.00046575,120]
[355744113,1741525839040,-500.0,0.00046575,120]
[355744114,1741525839050,-500.0,0.00046575,120]
[355744115,1741525839060,-500.0,0.00046575,120]
[355744116,1741525839069,-500.0,0.00046575,120]
[355744117,1741525839079,-500.0,0.00046575,120]
[355744118,1741525839090,-513.58523069,0.00046575,120]
[355744119,1741525839099,-500.0,0.00046575,120]
[355744120,1741525839109,-500.0,0.00046575,120]
[355744121,1741525839119,-500.0,0.00046575,120]
[355744122,1741525839129,-500.0,0.00046575,120]
[355744123,1741525839139,-500.0,0.00046575,120]
[355744124,1741525839148,-500.0,0.00046575,120]
[355744125,1741525839157,-151.0,0.00046575,120]
[355744126,1741525839167,-500.0,0.00046575,120]
[355744127,1741525839176,-500.0,0.00046575,120]
[355744128,1741525839186,-500.0,0.00046575,120]
[355744129,1741525839197,-500.0,0.00046575,120]
[355744130,1741525839211,-500.0,0.00046575,120]
[355744131,1741525839220,-500.0,0.00046575,120]
[355744132,1741525839230,-500.0,0.00046575,120]
[355744133,1741525839239,-500.0,0.00046575,120]
[355744134,1741525839250,-518.56110738,0.00046575,120]
[355744135,1741525839260,-500.0,0.00046575,120]
[355744136,1741525839269,-500.0,0.00046575,120]
[355744137,1741525839279,-500.0,0.00046575,120]
[355744138,1741525839289,-500.0,0.00046575,120]
[355744139,1741525839299,-500.0,0.00046575,120]
[355744140,1741525839309,-500.0,0.00046575,120]
[355744141,1741525839318,-500.0,0.00046575,120]
[355744142,1741525839328,-500.0,0.00046575,2]
[355744143,1741525839337,-500.0,0.00046575,120]
[355744144,1741525839347,-500.0,0.00046575,2]
[355744145,1741525839356,-500.0,0.00046575,120]
[355744146,1741525839366,-500.0,0.00046575,120]
[355744147,1741525839376,-3003.76,0.00046575,2]
[355744148,1741525839386,-151.0,0.00046575,120]
[355744149,1741525839395,-500.0,0.00046575,120]
[355744150,1741525839468,-151.0,0.00046575,120]
[355744151,1741525839488,-500.0,0.00046575,120]
[355744152,1741525839498,-162.390994,0.00046575,120]
[355744153,1741525839508,-162.390994,0.00046575,120]
[355744154,1741525839518,-500.0,0.00046575,120]
[355744155,1741525839527,-500.0,0.00046575,120]
[355744156,1741525839536,-500.0,0.00046575,120]
[355744157,1741525839545,-514.13,0.00046575,120]
[355744158,1741525839555,-500.0,0.00046575,120]
[355744159,1741525839564,-500.0,0.00046575,120]
[355744160,1741525839574,-500.0,0.00046575,120]
[355744161,1741525839583,-151.0,0.00046575,120]
[355744162,1741525839592,-151.0,0.00046575,120]
[355744163,1741525839602,-243.080467,0.00046575,120]
[355744164,1741525839611,-151.0,0.00046575,120]
[355744165,1741525839620,-534.02273981,0.00046575,120]
[355744166,1741525839629,-151.0,0.00046575,120]
[355744167,1741525839639,-500.0,0.00046575,120]
[355744168,1741525839650,-151.0,0.00046575,120]
[355744169,1741525839659,-418.90179761,0.00046575,120]
[355744170,1741525839669,-663.63,0.00046575,120]
[355744171,1741525839678,-500.0,0.00046575,120]
[355744172,1741525839687,-500.0,0.00046575,120]
[355744173,1741525839697,-500.0,0.00046575,120]
[355744174,1741525839707,-641.19301604,0.00046575,120]
[355744175,1741525839716,-500.0,0.00046575,120]
[355744176,1741525839725,-500.0,0.00046575,120]
[355744177,1741525839735,-500.0,0.00046575,120]
[355744178,1741525839744,-500.0,0.00046575,120]
[355744179,1741525839755,-500.0,0.00046575,120]
[355744180,1741525839764,-500.0,0.00046575,120]
[355744181,1741525839773,-411.740416,0.00046575,120]
[355744182,1741525839783,-615.51,0.00046575,120]
[355744183,1741525839792,-411.740416,0.00046575,120]
[355744184,1741525839801,-470.51926605,0.00046575,120]
[355744185,1741525839810,-500.06146085,0.00046575,120]
[355744186,1741525839820,-411.740416,0.00046575,120]
[355744187,1741525839829,-411.740416,0.00046575,120]
[355744188,1741525839839,-500.0,0.00046575,120]
[355744189,1741525839848,-500.0,0.00046575,120]
[355744190,1741525839858,-965.43,0.00046575,120]
[355744191,1741525839869,-500.0,0.00046575,120]
[355744192,1741525839878,-500.0,0.00046575,120]
[355744193,1741525839888,-500.0,0.00046575,120]
[355744194,1741525839897,-609.75740665,0.00046575,120]
[355744195,1741525839907,-500.0,0.00046575,120]
[355744196,1741525839917,-1000.0,0.00046575,5]
[355744197,1741525839927,-500.0,0.00046575,120]
[355744198,1741525839937,-500.0,0.00046575,120]
[355744199,1741525839946,-500.0,0.00046575,120]
[355744200,1741525839956,-373.96686982,0.00046575,120]
[355744201,1741525839965,-500.0,0.00046575,120]
[355744202,1741525839975,-500.0,0.00046575,120]
[355744203,1741525839984,-500.0,0.00046575,120]
[355744205,1741525839994,-500.0,0.00046575,120]
[355744206,1741525840006,-500.0,0.00046575,120]
[355744207,1741525840015,-500.0,0.00046575,120]
[355744208,1741525840026,-500.0,0.00046575,120]
[355744209,1741525840036,-3808.73,0.00046575,120]
[355744210,1741525840047,-500.0,0.00046575,120]
[355744211,1741525840057,-500.0,0.00046575,120]
[355744212,1741525840067,-500.0,0.00046575,120]
[355744213,1741525840077,-500.0,0.00046575,120]
[355744215,1741525840087,-840.95,0.00046575,120]
[355744218,1741525840097,-500.0,0.00046575,120]
[355744220,1741525840107,-500.0,0.00046575,120]
[355744222,1741525840117,-778.48,0.00046575,120]
[355744223,1741525840126,-500.0,0.00046575,120]
[355744224,1741525840136,-500.0,0.00046575,120]
[355744225,1741525840145,-500.0,0.00046575,120]
[355744226,1741525840155,-500.0,0.00046575,15]
[355744227,1741525840164,-500.0,0.00046575,120]
[355744228,1741525840174,-500.0,0.00046575,120]
[355744229,1741525840183,-500.0,0.00046575,120]
[355744230,1741525840192,-151.0,0.00046575,120]
[355744231,1741525840203,-151.0,0.00046575,120]
[355744232,1741525840218,-808.3,0.00046575,120]
[355744233,1741525840228,-151.0,0.00046575,120]
[355744234,1741525840237,-151.0,0.00046575,120]
[355744235,1741525840248,-151.0,0.00046575,120]
[355744236,1741525840259,-151.0,0.00046575,120]
[355744237,1741525840268,-500.0,0.00046575,120]
[355744238,1741525840278,-500.0,0.00046575,120]
[355744239,1741525840288,-500.0,0.00046575,120]
[355744240,1741525840298,-567.7102544,0.00046575,120]
[355744241,1741525840308,-500.0,0.00046575,120]
[355744242,1741525840317,-500.0,0.00046575,120]
[355744244,1741525840327,-500.0,0.00046575,120]
[355744245,1741525840337,-500.0,0.00046575,120]
[355744247,1741525840348,-1439.53,0.00046575,120]
[355744249,1741525840357,-500.0,0.00046575,120]
[355744251,1741525840367,-500.0,0.00046575,120]
[355744253,1741525840376,-500.0,0.00046575,120]
[355744255,1741525840386,-500.0,0.00046575,120]
[355744257,1741525840396,-500.0,0.00046575,120]
[355744259,1741525840407,-500.0,0.00046575,120]
[355744261,1741525840417,-151.0,0.00046575,120]
[355744263,1741525840426,-151.0,0.00046575,120]
[355744265,1741525840435,-500.0,0.00046575,120]
[355744267,1741525840445,-289.031368,0.00046575,90]
[355744269,1741525840455,-500.0,0.00046575,120]
[355744271,1741525840465,-500.0,0.00046575,120]
[355744273,1741525840476,-500.0,0.00046575,120]
[355744275,1741525840485,-500.0,0.00046575,120]
[355744277,1741525840494,-500.0,0.00046575,120]
[355744279,1741525840505,-500.0,0.00046575,120]
[355744281,1741525840515,-286.135169,0.00046575,120]
[355744283,1741525840524,-286.135169,0.00046575,120]
[355744285,1741525840534,-500.0,0.00046575,120]
[355744287,1741525840544,-500.0,0.00046575,120]
[355744289,1741525840553,-500.0,0.00046575,120]
[355744291,1741525840563,-249.609834,0.00046575,120]
[355744293,1741525840572,-249.609834,0.00046575,120]
[355744295,1741525840582,-500.0,0.00046575,120]
[355744297,1741525840591,-286.135169,0.00046575,120]
[355744299,1741525840601,-286.135169,0.00046575,120]
[355744301,1741525840610,-249.609834,0.00046575,120]
[355744310,1741525840684,-249.609834,0.00046575,120]
[355744312,1741525840694,-500.0,0.00046575,120]
[355744313,1741525840704,-500.0,0.00046575,120]
[355744314,1741525840713,-500.0,0.00046575,120]
[355744315,1741525840722,-500.0,0.00046575,120]
[355744316,1741525840734,-500.0,0.00046575,120]
[355744317,1741525840744,-500.0,0.00046575,120]
[355744318,1741525840753,-500.0,0.00046575,5]
[355744319,1741525840764,-1234.92,0.00046575,120]
[355744320,1741525840773,-500.0,0.00046575,120]
[355744321,1741525840783,-500.0,0.00046575,120]
[355744322,1741525840793,-500.0,0.00046575,120]
[355744323,1741525840803,-500.0,0.00046575,120]
[355744324,1741525840812,-500.0,0.00046575,120]
[355744325,1741525840822,-500.0,0.00046575,120]
[355744326,1741525840832,-500.0,0.00046575,120]
[355744327,1741525840841,-500.0,0.00046575,120]
[355744328,1741525840851,-500.0,0.00046575,120]